[Event "Catalan Youth-ch 2020"]
[Site "Salou"]
[Date "2020.09.06"]
[Round "2.7"]
[White "Prada Villagrasa, Pau Manel"]
[Black "Jordana Nagera, Pol"]
[Result "1-0"]
[ECO "A22"]
[WhiteElo "1573"]
[BlackElo "1229"]
[Annotator "NA"]
[PlyCount "59"]
[EventDate "2020.09.07"]
[EventType "swiss"]
[EventCountry "ESP"]
[SourceTitle "playchess.com"]
[Source "ChessBase"]
[SourceQuality "1"]
[TimeControl "5400+30"]

1. c4 {[%emt 0:00:00]} e5 {[%emt 0:00:00]} 2. Nc3 {[%emt 0:00:41]} Nf6 {[%emt 0:01:04]} 3. e4 {[%emt 0:01:08]} Bc5 {[%emt 0:03:40]} 4. d3 {[%emt 0:01:58]} d6 {[%emt 0:02:48]} 5. h3 {[%emt 0:00:32]} h6 {[%emt 0:02:01]} 6. Nf3 {[%emt 0:01:25]} O-O {[%emt 0:00:34]} 7. Be2 {[%emt 0:02:01]} Nc6 {[%emt 0:03:26]} 8. O-O {[%emt 0:03:16]} Re8 {[%emt 0:03:37]} 9. Nd5 {[%emt 0:07:04]} Nxd5 {[%emt 0:01:34]} 10. cxd5 {[%emt 0:00:00]} Nd4 {[%emt 0:05:11]} 11. Nxd4 {[%emt 0:00:00]} Bxd4 {[%emt 0:00:09]} 12. Bg4 {[%emt 0:03:04]} Qh4 {[%emt 0:03:04]} 13. Bxc8 {[%emt 0:00:00]} Raxc8 {[%emt 0:00:12]} 14. Kh1 {[%emt 0:06:26]} f6 {[%emt 0:07:07]} 15. f4 {[%emt 0:02:36]} c6 {[%emt 0:01:59]} 16. Qb3 {[%emt 0:00:00]} Kh8 {[%emt 0:03:21]} 17. Qxb7 {[%emt 0:00:00]} cxd5 {[%emt 0:01:56]} 18. Qxd5 {[%emt 0:00:00]} Rc2 {[%emt 0:01:27]} 19. Qa5 {[%emt 0:00:00]} Qg3 {[%emt 0:03:16]} 20. Bd2 {[%emt 0:03:19]} Rec8 {[%emt 0:02:22]} 21. Rf3 {[%emt 0:00:00]} Qh4 {[%emt 0:00:41]} 22. Be1 {[%emt 0:01:04]} Qh5 {[%emt 0:10:14]} 23. Bc3 {[%emt 0:07:38]} Qg6 {[%emt 0:06:14]} 24. g4 {[%emt 0:01:58]} h5 {[%emt 0:06:00]} 25. Qa4 {[%emt 0:09:28]} hxg4 {[%emt 0:08:57]} 26. Rg3 {[%emt 0:04:54]} Re2 {[%emt 0:06:16]} 27. Qd7 {[%emt 0:06:43]} Qe8 {[%emt 0:00:00]} 28. Qxg4 {[%emt 0:00:00]} Qg8 {[%emt 0:00:00]} 29. Qxe2 {[%emt 0:00:00]} exf4 {[%emt 0:00:00]} 30. Rg4 {[%emt 0:00:17]} 1-0

[Event "Catalan Youth-ch 2020"]
[Site "Salou"]
[Date "2020.09.06"]
[Round "2.8"]
[White "Pueyo Amoros, Pau"]
[Black "Alcala Gonzalez, Cesar"]
[Result "0-1"]
[ECO "D23"]
[WhiteElo "1784"]
[BlackElo "2026"]
[Annotator "ChessBase"]
[PlyCount "30"]
[EventDate "2020.09.07"]
[EventType "swiss"]
[EventCountry "ESP"]
[SourceTitle "playchess.com"]
[Source "ChessBase"]
[SourceQuality "1"]
[TimeControl "5400+30"]

1. d4 {[%emt 0:00:03]} d5 {[%emt 0:00:06]} 2. c4 {[%emt 0:00:06]} c6 {[%emt 0:00:04]} 3. Nf3 {[%emt 0:00:21]} Nf6 {[%emt 0:00:06]} 4. Qc2 {[%emt 0:00:30]} dxc4 {[%emt 0:00:25]} 5. Qxc4 {[%emt 0:01:22]} Bf5 {[%emt 0:01:16]} 6. Nc3 {[%emt 0:00:55]} e6 {[%emt 0:00:14]} 7. Bg5 {[%emt 0:04:41]} Be7 {[%emt 0:03:23]} 8. e3 {[%emt 0:07:39]} Qb6 {[%emt 0:08:04]} 9. b3 {[%emt 0:14:11]} Qa5 {[%emt 0:45:49]} 10. Rc1 {[%emt 0:06:56]} b5 {[%emt 0:05:08]} 11. Qe2 {[%emt 0:03:01]} Ba3 {[%emt 0:03:50]} 12. Bxf6 {[%emt 0:03:41]} Bxc1 13. Bxg7 {[%emt 0:01:31]} Qxc3+ {[%emt 0:00:10]} 14. Kd1 {[%emt 0:08:46]} Qa1 {[%emt 0:01:45]} 15. e4 {[%emt 0:02:17]} Bb2+ {[%emt 0:00:45]} 0-1

[Event "Catalan Youth-ch 2020"]
[Site "Salou"]
[Date "2020.09.06"]
[Round "2.8"]
[White "Roure Sola, Oriol"]
[Black "Uber Garcia, Hugo"]
[Result "1/2-1/2"]
[ECO "C01"]
[WhiteElo "1160"]
[BlackElo "1521"]
[Annotator "NA"]
[PlyCount "89"]
[EventDate "2020.09.07"]
[EventType "swiss"]
[EventCountry "ESP"]
[SourceTitle "playchess.com"]
[Source "ChessBase"]
[SourceQuality "1"]
[TimeControl "5400+30"]

1. e4 {[%emt 0:00:00]} e6 {[%emt 0:00:00]} 2. d4 {[%emt 0:00:00]} d5 {[%emt 0:00:24]} 3. exd5 {[%emt 0:00:18]} exd5 {[%emt 0:00:34]} 4. Nf3 {[%emt 0:00:50]} Bg4 {[%emt 0:00:50]} 5. Bd3 {[%emt 0:01:21]} Nf6 {[%emt 0:01:14]} 6. O-O {[%emt 0:01:12]} Be7 {[%emt 0:00:38]} 7. Re1 {[%emt 0:01:14]} O-O {[%emt 0:01:40]} 8. Bg5 {[%emt 0:01:48]} Nc6 {[%emt 0:02:31]} 9. c3 {[%emt 0:01:04]} Re8 {[%emt 0:00:00]} 10. Nbd2 {[%emt 0:15:01]} Nh5 {[%emt 0:04:20]} 11. Bxe7 {[%emt 0:00:43]} Rxe7 {[%emt 0:04:41]} 12. Qc2 {[%emt 0:00:32]} h6 {[%emt 0:18:33]} 13. Rxe7 {[%emt 0:13:06]} Qxe7 {[%emt 0:01:36]} 14. Re1 {[%emt 0:01:24]} Qd7 {[%emt 0:08:19]} 15. Ne5 {[%emt 0:07:52]} Nxe5 {[%emt 0:01:33]} 16. Rxe5 {[%emt 0:01:11]} Re8 {[%emt 0:02:56]} 17. Rxe8+ {[%emt 0:04:17]} Qxe8 {[%emt 0:04:08]} 18. h3 {[%emt 0:01:14]} Bd7 {[%emt 0:00:00]} 19. Nf3 {[%emt 0:07:23]} Nf4 {[%emt 0:07:41]} 20. Bf5 {[%emt 0:14:44]} f6 {[%emt 0:06:05]} 21. Bxd7 {[%emt 0:00:00]} Qxd7 {[%emt 0:00:00]} 22. Qb3 {[%emt 0:00:00]} b6 {[%emt 0:00:00]} 23. Qa3 {[%emt 0:00:00]} a5 {[%emt 0:00:00]} 24. Qb3 {[%emt 0:00:56]} Qf7 {[%emt 0:00:00]} 25. Ne1 {[%emt 0:03:03]} Qe8 {[%emt 0:03:46]} 26. Qd1 {[%emt 0:02:45]} Qe4 {[%emt 0:05:22]} 27. Kf1 {[%emt 0:01:46]} Kf7 {[%emt 0:01:14]} 28. Qc2 {[%emt 0:03:21]} Qe8 {[%emt 0:02:32]} 29. Nf3 {[%emt 0:01:57]} Qb5+ {[%emt 0:01:36]} 30. Kg1 {[%emt 0:00:50]} Ne2+ {[%emt 0:04:07]} 31. Kh2 {[%emt 0:00:58]} Nf4 {[%emt 0:01:03]} 32. g3 {[%emt 0:00:45]} Ng6 {[%emt 0:01:09]} 33. b3 {[%emt 0:00:38]} Qc6 {[%emt 0:01:05]} 34. Qd3 {[%emt 0:00:41]} Qd7 {[%emt 0:03:06]} 35. Qc2 {[%emt 0:01:40]} Ne7 {[%emt 0:00:14]} 36. c4 {[%emt 0:00:41]} c6 {[%emt 0:00:36]} 37. a3 {[%emt 0:00:40]} Qd6 {[%emt 0:00:43]} 38. c5 {[%emt 0:00:33]} Qb8 {[%emt 0:02:46]} 39. b4 {[%emt 0:00:33]} axb4 {[%emt 0:01:35]} 40. axb4 {[%emt 0:00:09]} Qb7 {[%emt 0:01:03]} 41. Qa4 {[%emt 0:01:19]} Kf8 {[%emt 0:01:24]} 42. h4 {[%emt 0:00:34]} Kf7 {[%emt 0:00:26]} 43. Kg2 {[%emt 0:01:08]} Nf5 {[%emt 0:01:34]} 44. Kh3 {[%emt 0:01:04]} Ne7 {[%emt 0:01:25]} 45. Kg2 {[%emt 0:01:28]} 1/2-1/2

[Event "Catalan Youth-ch 2020"]
[Site "Salou"]
[Date "2020.09.06"]
[Round "3.1"]
[White "Saguillo Gonzalez, Oriol"]
[Black "Masague Artero, Guerau"]
[Result "1-0"]
[ECO "B06"]
[WhiteElo "2124"]
[BlackElo "2320"]
[Annotator "ChessBase"]
[PlyCount "97"]
[EventDate "2020.09.07"]
[EventType "swiss"]
[EventCountry "ESP"]
[SourceTitle "playchess.com"]
[Source "ChessBase"]
[SourceQuality "1"]
[TimeControl "5400+30"]

1. e4 {[%emt 0:00:00]} g6 {[%emt 0:00:00]} 2. d4 {[%emt 0:00:35]} Nf6 {[%emt 0:00:00]} 3. e5 {[%emt 0:03:56]} Nh5 {[%emt 0:00:00]} 4. Bc4 {[%emt 0:11:06]} d5 {[%emt 0:11:42]} 5. Be2 {[%emt 0:07:33]} c5 {[%emt 0:03:45]} 6. c3 {[%emt 0:05:13]} Nc6 {[%emt 0:01:02]} 7. h3 {[%emt 0:02:30]} Bf5 {[%emt 0:21:28]} 8. Nf3 {[%emt 0:01:34]} Be4 {[%emt 0:01:41]} 9. O-O {[%emt 0:00:54]} Bxf3 {[%emt 0:08:55]} 10. Bxf3 {[%emt 0:00:21]} e6 {[%emt 0:05:31]} 11. Bxh5 {[%emt 0:09:00]} gxh5 {[%emt 0:00:02]} 12. Be3 {[%emt 0:00:24]} Qb6 {[%emt 0:18:17]} 13. b4 {[%emt 0:13:08]} cxd4 {[%emt 0:00:00]} 14. cxd4 {[%emt 0:00:07]} Bxb4 {[%emt 0:00:00]} 15. Nd2 {[%emt 0:01:01]} Bxd2 {[%emt 0:00:00]} 16. Qxd2 {[%emt 0:00:07]} O-O-O {[%emt 0:00:06]} 17. a4 {[%emt 0:00:51]} Qb4 {[%emt 0:05:28]} 18. Qd1 {[%emt 0:04:25]} Rd7 {[%emt 0:01:49]} 19. Rb1 {[%emt 0:07:52]} Qa3 {[%emt 0:00:22]} 20. Ra1 {[%emt 0:02:29]} Qb4 {[%emt 0:00:08]} 21. Rb1 {[%emt 0:01:34]} Qa5 {[%emt 0:05:24]} 22. Rb5 {[%emt 0:01:05]} Qa6 {[%emt 0:00:05]} 23. Bg5 {[%emt 0:13:36]} Kb8 {[%emt 0:01:28]} 24. h4 {[%emt 0:01:34]} h6 {[%emt 0:01:16]} 25. Bf6 {[%emt 0:01:54]} Rg8 {[%emt 0:02:11]} 26. f3 {[%emt 0:02:47]} Rc7 {[%emt 0:01:24]} 27. Rf2 {[%emt 0:01:20]} Na5 {[%emt 0:02:53]} 28. Ra2 {[%emt 0:01:54]} Rc4 {[%emt 0:02:37]} 29. Rab2 {[%emt 0:02:57]} Nc6 {[%emt 0:02:46]} 30. Rxb7+ {[%emt 0:00:00]} Qxb7 {[%emt 0:00:02]} 31. Rxb7+ {[%emt 0:00:00]} Kxb7 {[%emt 0:00:08]} 32. Qb1+ {[%emt 0:00:00]} Ka8 {[%emt 0:02:29]} 33. Qh7 {[%emt 0:00:00]} Rb8 {[%emt 0:00:39]} 34. Kh2 {[%emt 0:01:07]} Nxd4 {[%emt 0:00:25]} 35. Qxh6 {[%emt 0:00:44]} Rc2 {[%emt 0:02:47]} 36. Qxh5 {[%emt 0:00:53]} Nf5 {[%emt 0:00:37]} 37. Qxf7 {[%emt 0:02:39]} Ne3 {[%emt 0:00:10]} 38. Qxe6 {[%emt 0:00:40]} Rxg2+ {[%emt 0:00:30]} 39. Kh3 {[%emt 0:00:13]} Rb1 {[%emt 0:00:26]} 40. Qc8+ {[%emt 0:00:11]} Rb8 {[%emt 0:00:01]} 41. Qc6+ {[%emt 0:00:19]} Rb7 {[%emt 0:00:01]} 42. Qc8+ {[%emt 0:00:27]} Rb8 {[%emt 0:00:01]} 43. Qc6+ {[%emt 0:00:04]} Rb7 {[%emt 0:00:00]} 44. e6 {[%emt 0:00:27]} Rf2 {[%emt 0:01:24]} 45. e7 {[%emt 0:01:54]} Rxf3+ {[%emt 0:00:06]} 46. Kh2 {[%emt 0:00:12]} Ng4+ {[%emt 0:02:06]} 47. Kg2 {[%emt 0:00:07]} Nxf6 {[%emt 0:00:38]} 48. Kxf3 {[%emt 0:00:37]} a5 {[%emt 0:00:23]} 49. Qxf6 {[%emt 0:00:07]} 1-0

[Event "Catalan Youth-ch 2020"]
[Site "Salou"]
[Date "2020.09.06"]
[Round "3.1"]
[White "Boix Redorta, Roc"]
[Black "Bernado Lopez, Roger"]
[Result "1/2-1/2"]
[ECO "B21"]
[WhiteElo "1745"]
[BlackElo "2155"]
[Annotator "ChessBase"]
[PlyCount "81"]
[EventDate "2020.09.07"]
[EventType "swiss"]
[EventCountry "ESP"]
[SourceTitle "playchess.com"]
[Source "ChessBase"]
[SourceQuality "1"]
[TimeControl "5400+30"]

1. e4 {[%emt 0:00:00]} c5 {[%emt 0:00:00]} 2. d4 {[%emt 0:00:24]} cxd4 {[%emt 0:00:00]} 3. c3 {[%emt 0:00:04]} Nf6 {[%emt 0:01:15]} 4. Bd3 {[%emt 0:00:25]} dxc3 {[%emt 0:01:57]} 5. Nxc3 {[%emt 0:00:16]} Nc6 {[%emt 0:00:12]} 6. Nf3 {[%emt 0:00:18]} d6 {[%emt 0:00:12]} 7. O-O {[%emt 0:00:13]} Bg4 {[%emt 0:05:16]} 8. h3 {[%emt 0:00:50]} Bh5 {[%emt 0:02:02]} 9. Bf4 {[%emt 0:03:57]} e6 {[%emt 0:03:48]} 10. Bb5 {[%emt 0:05:39]} Be7 {[%emt 0:17:51]} 11. Qa4 {[%emt 0:02:55]} O-O {[%emt 0:02:20]} 12. Bxc6 {[%emt 0:00:51]} bxc6 {[%emt 0:00:02]} 13. Qxc6 {[%emt 0:03:35]} Qa5 {[%emt 0:08:17]} 14. Bxd6 {[%emt 0:14:56]} Rac8 {[%emt 0:26:05]} 15. Qb5 {[%emt 0:02:02]} Qxb5 {[%emt 0:01:04]} 16. Nxb5 {[%emt 0:00:04]} Bxd6 {[%emt 0:00:23]} 17. Nxd6 {[%emt 0:00:15]} Rc2 {[%emt 0:00:05]} 18. b3 {[%emt 0:01:01]} Bg6 {[%emt 0:03:30]} 19. e5 {[%emt 0:07:13]} Nd5 {[%emt 0:01:23]} 20. Rfc1 {[%emt 0:02:47]} Nb4 {[%emt 0:08:46]} 21. Rxc2 {[%emt 0:00:51]} Nxc2 {[%emt 0:00:10]} 22. Rc1 {[%emt 0:01:38]} h6 {[%emt 0:01:00]} 23. Ne1 {[%emt 0:06:03]} Nd4 {[%emt 0:03:23]} 24. Rc7 {[%emt 0:02:34]} Ra8 {[%emt 0:00:57]} 25. Nf3 {[%emt 0:04:08]} Nxf3+ {[%emt 0:01:15]} 26. gxf3 {[%emt 0:00:04]} a5 {[%emt 0:00:42]} 27. a3 {[%emt 0:02:17]} Rb8 {[%emt 0:01:26]} 28. Rb7 {[%emt 0:00:18]} Ra8 {[%emt 0:00:56]} 29. Kg2 {[%emt 0:02:30]} f6 {[%emt 0:01:36]} 30. f4 {[%emt 0:02:31]} Bc2 {[%emt 0:01:38]} 31. Kf3 {[%emt 0:06:37]} Ra6 {[%emt 0:00:47]} 32. Ne8 {[%emt 0:01:50]} fxe5 {[%emt 0:02:08]} 33. fxe5 {[%emt 0:01:39]} Rc6 {[%emt 0:00:45]} 34. Kg4 {[%emt 0:03:14]} Rc3 {[%emt 0:01:32]} 35. Nxg7 {[%emt 0:01:20]} Bxb3 {[%emt 0:00:25]} 36. Ne8 {[%emt 0:00:42]} Bd1+ {[%emt 0:00:57]} 37. Kh4 {[%emt 0:00:39]} Rxa3 {[%emt 0:00:27]} 38. Nf6+ {[%emt 0:01:33]} Kf8 {[%emt 0:00:06]} 39. Rb8+ {[%emt 0:02:14]} Kf7 {[%emt 0:00:37]} 40. Ng4 {[%emt 0:01:20]} Bxg4 {[%emt 0:00:57]} 41. hxg4 {[%emt 0:00:45]} 1/2-1/2

[Event "Catalan Youth-ch 2020"]
[Site "Salou"]
[Date "2020.09.06"]
[Round "3.2"]
[White "Castillo Dalmau, Albert"]
[Black "Alvarez Albiol, Victor"]
[Result "0-1"]
[ECO "A49"]
[WhiteElo "2204"]
[BlackElo "2123"]
[Annotator "ChessBase"]
[PlyCount "110"]
[EventDate "2020.09.07"]
[EventType "swiss"]
[EventCountry "ESP"]
[SourceTitle "playchess.com"]
[Source "ChessBase"]
[SourceQuality "1"]
[TimeControl "5400+30"]

1. Nf3 {[%emt 0:00:00]} Nf6 {[%emt 0:00:00]} 2. g3 {[%emt 0:00:27]} g6 {[%emt 0:00:00]} 3. Bg2 {[%emt 0:00:00]} Bg7 {[%emt 0:00:00]} 4. O-O {[%emt 0:00:00]} O-O {[%emt 0:00:05]} 5. d4 {[%emt 0:00:00]} d6 {[%emt 0:00:05]} 6. a4 {[%emt 0:00:00]} a5 {[%emt 0:00:05]} 7. c3 {[%emt 0:00:58]} c6 {[%emt 0:00:13]} 8. Re1 {[%emt 0:00:00]} Nbd7 {[%emt 0:02:50]} 9. Na3 {[%emt 0:02:10]} Qc7 {[%emt 0:02:29]} 10. e4 {[%emt 0:01:05]} e5 {[%emt 0:03:36]} 11. dxe5 {[%emt 0:05:18]} dxe5 {[%emt 0:00:00]} 12. Nc4 {[%emt 0:04:42]} Nc5 {[%emt 0:33:11]} 13. Qc2 {[%emt 0:35:08]} Re8 {[%emt 0:07:13]} 14. Be3 {[%emt 0:17:13]} Be6 {[%emt 0:05:11]} 15. Nfxe5 {[%emt 0:10:42]} Nfxe4 {[%emt 0:02:31]} 16. Bf4 {[%emt 0:00:00]} g5 {[%emt 0:13:14]} 17. Bxe4 {[%emt 0:00:00]} Nxe4 {[%emt 0:01:04]} 18. Qxe4 {[%emt 0:00:09]} gxf4 {[%emt 0:04:44]} 19. Nd3 {[%emt 0:00:51]} Bd5 {[%emt 0:00:00]} 20. Qxe8+ {[%emt 0:02:31]} Rxe8 {[%emt 0:00:00]} 21. Rxe8+ {[%emt 0:00:01]} Bf8 {[%emt 0:00:34]} 22. Nce5 {[%emt 0:14:21]} f6 {[%emt 0:00:00]} 23. c4 {[%emt 0:00:00]} Be4 {[%emt 0:00:00]} 24. Nxf4 {[%emt 0:00:00]} Bf5 {[%emt 0:03:05]} 25. Ned3 {[%emt 0:00:00]} Qf7 {[%emt 0:00:00]} 26. Rae1 {[%emt 0:00:00]} Qxc4 {[%emt 0:00:00]} 27. R1e3 {[%emt 0:00:00]} Qxa4 {[%emt 0:01:27]} 28. Rb8 {[%emt 0:06:59]} Qd1+ {[%emt 0:01:55]} 29. Kg2 {[%emt 0:01:06]} b5 {[%emt 0:07:09]} 30. Re1 {[%emt 0:00:00]} Qc2 {[%emt 0:02:29]} 31. Ree8 {[%emt 0:00:00]} Bxd3 {[%emt 0:00:20]} 32. Rxf8+ {[%emt 0:00:00]} Kg7 {[%emt 0:00:01]} 33. Ne6+ {[%emt 0:00:00]} Kg6 {[%emt 0:00:41]} 34. Nf4+ {[%emt 0:00:35]} Kf5 {[%emt 0:01:30]} 35. Rbe8 {[%emt 0:05:30]} Be4+ {[%emt 0:04:05]} 36. Kh3 {[%emt 0:00:00]} Qd1 {[%emt 0:00:41]} 37. Rxe4 {[%emt 0:00:00]} Kxe4 {[%emt 0:01:22]} 38. Rxf6 {[%emt 0:00:00]} Qf1+ {[%emt 0:01:04]} 39. Kg4 {[%emt 0:00:00]} Qd1+ {[%emt 0:02:21]} 40. Kg5 {[%emt 0:00:00]} Qd8 {[%emt 0:00:39]} 41. Nh5 {[%emt 0:00:00]} a4 {[%emt 0:01:13]} 42. Kh6 {[%emt 0:00:00]} Qd2+ {[%emt 0:01:25]} 43. Kxh7 {[%emt 0:00:39]} Qxb2 {[%emt 0:00:33]} 44. g4 {[%emt 0:00:44]} a3 {[%emt 0:00:36]} 45. g5 {[%emt 0:00:33]} a2 {[%emt 0:00:32]} 46. g6 {[%emt 0:00:42]} a1=Q {[%emt 0:00:27]} 47. Rf4+ {[%emt 0:00:32]} Kd5 {[%emt 0:00:37]} 48. g7 {[%emt 0:00:24]} Qc2+ {[%emt 0:01:10]} 49. Kh6 {[%emt 0:00:26]} Qg1 {[%emt 0:01:32]} 50. Nf6+ {[%emt 0:00:41]} Ke6 {[%emt 0:00:11]} 51. Rg4 {[%emt 0:00:32]} Qxh2+ {[%emt 0:00:37]} 52. Nh5 {[%emt 0:00:24]} Qh7+ {[%emt 0:00:23]} 53. Kxh7 {[%emt 0:00:16]} Qxh5+ {[%emt 0:00:02]} 54. Kg8 {[%emt 0:00:06]} Qxg4 {[%emt 0:00:10]} 55. Kf8 {[%emt 0:00:19]} Qxg7+ {[%emt 0:00:07]} 0-1

[Event "Catalan Youth-ch 2020"]
[Site "Salou"]
[Date "2020.09.06"]
[Round "3.2"]
[White "Ano Pla, Gerard"]
[Black "Ribera Veganzones, Serni"]
[Result "0-1"]
[ECO "A80"]
[WhiteElo "1993"]
[BlackElo "1902"]
[Annotator "NA"]
[PlyCount "106"]
[EventDate "2020.09.07"]
[EventType "swiss"]
[EventCountry "ESP"]
[SourceTitle "playchess.com"]
[Source "ChessBase"]
[SourceQuality "1"]
[TimeControl "5400+30"]

1. d4 {[%emt 0:00:00]} f5 {[%emt 0:00:00]} 2. Nc3 {[%emt 0:00:00]} Nf6 {[%emt 0:00:07]} 3. Bg5 {[%emt 0:00:00]} d5 {[%emt 0:00:26]} 4. e3 {[%emt 0:00:11]} e6 {[%emt 0:00:42]} 5. Nf3 {[%emt 0:00:14]} Be7 {[%emt 0:00:30]} 6. Bd3 {[%emt 0:00:32]} O-O {[%emt 0:01:09]} 7. O-O {[%emt 0:00:05]} Ne4 {[%emt 0:00:37]} 8. Bxe7 {[%emt 0:01:27]} Qxe7 {[%emt 0:06:55]} 9. Ne5 {[%emt 0:10:26]} Nd7 {[%emt 0:01:29]} 10. Nxd7 {[%emt 0:09:34]} Bxd7 {[%emt 0:00:09]} 11. Nxe4 {[%emt 0:03:17]} fxe4 {[%emt 0:01:30]} 12. Be2 {[%emt 0:00:17]} Rae8 {[%emt 0:12:22]} 13. c4 {[%emt 0:04:15]} c6 {[%emt 0:00:06]} 14. f4 {[%emt 0:09:03]} exf3 {[%emt 0:00:54]} 15. Bxf3 {[%emt 0:15:31]} dxc4 {[%emt 0:16:15]} 16. Qe2 {[%emt 0:20:50]} b5 {[%emt 0:14:50]} 17. a4 {[%emt 0:00:00]} a6 {[%emt 0:03:29]} 18. axb5 {[%emt 0:00:00]} axb5 {[%emt 0:00:10]} 19. Ra7 {[%emt 0:00:00]} Ra8 {[%emt 0:03:44]} 20. Rfa1 {[%emt 0:00:00]} Rxa7 {[%emt 0:00:06]} 21. Rxa7 {[%emt 0:00:00]} Qd6 {[%emt 0:00:43]} 22. Be4 {[%emt 0:00:00]} g6 {[%emt 0:06:06]} 23. h4 {[%emt 0:00:40]} Be8 {[%emt 0:06:56]} 24. h5 {[%emt 0:02:25]} e5 {[%emt 0:05:38]} 25. hxg6 {[%emt 0:03:50]} Bxg6 {[%emt 0:00:11]} 26. Qg4 {[%emt 0:01:34]} exd4 {[%emt 0:01:56]} 27. Bxg6 {[%emt 0:04:17]} Qxg6 {[%emt 0:02:34]} 28. Qxd4 {[%emt 0:00:33]} Qf6 {[%emt 0:03:43]} 29. Qg4+ {[%emt 0:02:01]} Kh8 {[%emt 0:06:52]} 30. Qe4 {[%emt 0:06:10]} Qf1+ {[%emt 0:03:14]} 31. Kh2 {[%emt 0:00:00]} Qf5 {[%emt 0:03:50]} 32. Qd4+ {[%emt 0:01:40]} Qf6 {[%emt 0:04:59]} 33. Qxf6+ {[%emt 0:05:08]} Rxf6 {[%emt 0:00:00]} 34. Kg3 {[%emt 0:00:10]} Kg8 {[%emt 0:00:00]} 35. e4 {[%emt 0:00:41]} Rf7 {[%emt 0:00:00]} 36. Ra6 {[%emt 0:00:24]} Rc7 {[%emt 0:00:00]} 37. Rb6 {[%emt 0:00:26]} Kf7 {[%emt 0:00:00]} 38. Kf4 {[%emt 0:00:09]} Ke6 {[%emt 0:00:00]} 39. Rb8 {[%emt 0:00:19]} Rd7 {[%emt 0:00:00]} 40. Rc8 {[%emt 0:01:53]} Rd2 {[%emt 0:00:00]} 41. Rxc6+ {[%emt 0:00:32]} Kd7 {[%emt 0:00:00]} 42. Rh6 {[%emt 0:01:26]} Rxg2 {[%emt 0:00:00]} 43. Rxh7+ {[%emt 0:00:33]} Kc6 {[%emt 0:00:00]} 44. e5 {[%emt 0:00:20]} Rxb2 {[%emt 0:00:00]} 45. Rh6+ {[%emt 0:00:50]} Kc5 {[%emt 0:00:00]} 46. Ke3 {[%emt 0:00:23]} c3 {[%emt 0:00:00]} 47. Kd3 {[%emt 0:00:42]} b4 {[%emt 0:00:00]} 48. e6 {[%emt 0:00:25]} Kd6 {[%emt 0:00:00]} 49. Rh1 {[%emt 0:00:41]} c2 {[%emt 0:00:00]} 50. Kd2 {[%emt 0:00:33]} Rb1 {[%emt 0:00:00]} 51. e7 {[%emt 0:00:12]} Rxh1 {[%emt 0:00:00]} 52. e8=Q {[%emt 0:00:24]} c1=Q+ {[%emt 0:00:00]} 53. Kd3 {[%emt 0:00:13]} Qc3+ {[%emt 0:00:02]} 0-1

[Event "Catalan Youth-ch 2020"]
[Site "Salou"]
[Date "2020.09.06"]
[Round "3.3"]
[White "Garcia Escoda, Marc"]
[Black "Sole Pijuan, Ferran"]
[Result "1/2-1/2"]
[ECO "C50"]
[WhiteElo "2054"]
[BlackElo "2127"]
[Annotator "NA"]
[PlyCount "136"]
[EventDate "2020.09.07"]
[EventType "swiss"]
[EventCountry "ESP"]
[SourceTitle "playchess.com"]
[Source "ChessBase"]
[SourceQuality "1"]
[TimeControl "5400+30"]

1. e4 {[%emt 0:00:00]} e5 {[%emt 0:00:00]} 2. Nf3 {[%emt 0:00:00]} Nc6 {[%emt 0:00:00]} 3. Bc4 {[%emt 0:00:00]} Bc5 {[%emt 0:00:56]} 4. Nc3 {[%emt 0:00:03]} Nf6 {[%emt 0:00:55]} 5. d3 {[%emt 0:00:12]} a6 {[%emt 0:01:31]} 6. Be3 {[%emt 0:03:59]} Bxe3 {[%emt 0:12:56]} 7. fxe3 {[%emt 0:00:00]} d6 {[%emt 0:00:02]} 8. a4 {[%emt 0:00:00]} O-O {[%emt 0:05:25]} 9. O-O {[%emt 0:00:00]} Ng4 {[%emt 0:02:05]} 10. Qe1 {[%emt 0:04:07]} Kh8 {[%emt 0:01:03]} 11. h3 {[%emt 0:00:14]} Nh6 {[%emt 0:00:06]} 12. Nh4 {[%emt 0:01:23]} Ne7 {[%emt 0:17:01]} 13. Qg3 {[%emt 0:15:31]} c6 {[%emt 0:02:11]} 14. Bb3 {[%emt 0:06:25]} f6 {[%emt 0:05:25]} 15. Kh1 {[%emt 0:19:24]} Bd7 {[%emt 0:07:11]} 16. a5 {[%emt 0:02:16]} Qc7 {[%emt 0:02:40]} 17. Qf2 {[%emt 0:08:56]} Rad8 {[%emt 0:03:34]} 18. Qd2 {[%emt 0:04:15]} Bc8 {[%emt 0:10:04]} 19. Na4 {[%emt 0:01:22]} d5 {[%emt 0:01:06]} 20. exd5 {[%emt 0:00:10]} cxd5 {[%emt 0:02:32]} 21. Nb6 {[%emt 0:02:51]} e4 {[%emt 0:05:47]} 22. Nxc8 {[%emt 0:02:43]} Qxc8 {[%emt 0:02:44]} 23. g4 {[%emt 0:02:02]} Nf7 {[%emt 0:01:30]} 24. dxe4 {[%emt 0:01:39]} dxe4 {[%emt 0:00:23]} 25. Qb4 {[%emt 0:00:21]} Nd6 {[%emt 0:05:27]} 26. Rad1 {[%emt 0:07:20]} Nc6 {[%emt 0:00:29]} 27. Qc5 {[%emt 0:01:05]} Qc7 {[%emt 0:01:46]} 28. Qh5 {[%emt 0:00:32]} Ne5 {[%emt 0:01:17]} 29. Rd5 {[%emt 0:02:58]} Ndf7 {[%emt 0:03:54]} 30. Qf5 {[%emt 0:06:14]} Rxd5 {[%emt 0:01:46]} 31. Bxd5 {[%emt 0:00:03]} Qd7 {[%emt 0:02:27]} 32. Bxe4 {[%emt 0:00:51]} Qxf5 {[%emt 0:00:04]} 33. Nxf5 {[%emt 0:00:02]} g6 {[%emt 0:00:51]} 34. Ng3 {[%emt 0:02:23]} Nd6 {[%emt 0:00:21]} 35. Rd1 {[%emt 0:00:01]} Nxe4 {[%emt 0:00:33]} 36. Nxe4 {[%emt 0:00:01]} Kg7 {[%emt 0:00:59]} 37. Nc5 {[%emt 0:01:33]} Rf7 {[%emt 0:00:44]} 38. b4 {[%emt 0:00:32]} Re7 {[%emt 0:00:11]} 39. e4 {[%emt 0:00:33]} h5 {[%emt 0:00:21]} 40. gxh5 {[%emt 0:00:13]} gxh5 {[%emt 0:00:11]} 41. Rd6 {[%emt 0:00:59]} Nc6 {[%emt 0:01:02]} 42. c3 {[%emt 0:00:08]} Kg6 {[%emt 0:00:19]} 43. Rd7 {[%emt 0:00:17]} Rxd7 {[%emt 0:00:39]} 44. Nxd7 {[%emt 0:00:02]} f5 {[%emt 0:00:11]} 45. exf5+ {[%emt 0:00:38]} Kxf5 {[%emt 0:00:03]} 46. Nc5 {[%emt 0:00:04]} Nd8 {[%emt 0:01:14]} 47. Kg2 {[%emt 0:00:10]} Ke5 {[%emt 0:00:04]} 48. Kf3 {[%emt 0:00:39]} Kd5 {[%emt 0:00:10]} 49. Ke3 {[%emt 0:00:34]} Kc4 {[%emt 0:00:25]} 50. Kd2 {[%emt 0:00:01]} Kb5 {[%emt 0:00:16]} 51. Kd3 {[%emt 0:01:02]} b6 {[%emt 0:00:27]} 52. axb6 {[%emt 0:00:33]} Kxb6 {[%emt 0:00:04]} 53. Kc4 {[%emt 0:00:10]} h4 {[%emt 0:01:19]} 54. Nd7+ {[%emt 0:01:38]} Kc7 {[%emt 0:00:14]} 55. Ne5 {[%emt 0:00:08]} Ne6 {[%emt 0:00:20]} 56. Ng6 {[%emt 0:00:11]} Kc6 {[%emt 0:00:56]} 57. Nxh4 {[%emt 0:00:16]} Ng5 {[%emt 0:00:07]} 58. Nf5 {[%emt 0:00:59]} Nxh3 {[%emt 0:00:05]} 59. Nd4+ {[%emt 0:00:20]} Kb6 {[%emt 0:00:12]} 60. Ne6 {[%emt 0:00:28]} Nf2 {[%emt 0:01:19]} 61. Nc5 {[%emt 0:00:10]} Ng4 {[%emt 0:00:21]} 62. Nxa6 {[%emt 0:01:31]} Kxa6 {[%emt 0:00:14]} 63. Kc5 {[%emt 0:00:09]} Ne5 {[%emt 0:00:36]} 64. b5+ {[%emt 0:00:43]} Kb7 {[%emt 0:00:06]} 65. Kb4 {[%emt 0:00:14]} Kb6 {[%emt 0:00:14]} 66. c4 {[%emt 0:00:04]} Nd3+ {[%emt 0:00:25]} 67. Kc3 {[%emt 0:00:07]} Nc5 {[%emt 0:00:06]} 68. Kb4 {[%emt 0:00:05]} Nd3+ {[%emt 0:00:07]} 1/2-1/2